Cogmind - Beta 11.1 @@@ ROGUE MODE // 2022.06.25 @ 11:41:18 Player: ILikeGoodFood Result: Destroyed by D-53 Grenadier with Mini Grenade Launcher Performance ------------- Evolutions (0) 0 Regions Visited (2) 400 Robots Destroyed (10) 50 Value Destroyed (182) 182 Prototype IDs (0) 0 Alien Tech Used (0) 0 Bonus (0) 0 TOTAL SCORE: 632 Bonus ------- None Cogmind --------- Core Integrity 0/250 Matter 300/300 Energy 98/100 System Corruption 0% Temperature Cool (0) Movement Core (50) Location -10/Mines Parts ------- > --- POWER (1) -------- (None) > --- PROPULSION (2) --- (None) > --- UTILITY (2) ------ Targeting Computer > --- WEAPON (2) ------- Medium Laser > --- INVENTORY (5) ---- Small Laser Small Laser Peak State ------------ > --- POWER ------------ Ion Engine > --- PROPULSION ------- Aluminum Leg Aluminum Leg > --- UTILITY ---------- Targeting Computer > --- WEAPON ----------- Small Laser Small Laser > --- INVENTORY -------- (None) [Rating: 6] Favorites ----------- Power Ion Engine Engine Ion Engine Propulsion Aluminum Leg Leg Aluminum Leg Utility Targeting Computer Processor Targeting Computer Weapon Small Laser Energy Gun Small Laser Energy Cannon Beam Cannon Build | -11 -10 -10 ------- Run | Scr Mat Min Slots Evolved . | . . . Power . | . . . Propulsion . | . . . Utility . | . . . Weapon . | . . . Parts Attached 15 | 5 8 2 Power 3 | 1 2 . Engine 3 | 1 2 . Core . | . . . Reactor . | . . . Propulsion 3 | 2 1 . Treads . | . . . Leg 3 | 2 1 . Wheel . | . . . Hover . | . . . Flight . | . . . Utility 1 | . 1 . Device . | . . . Storage . | . . . Processor 1 | . 1 . Hackware . | . . . Protection . | . . . Artifact . | . . . Weapon 8 | 2 4 2 Energy Gun 4 | 2 2 . Energy Cannon 4 | . 2 2 Ballistic Gun . | . . . Ballistic Cannon . | . . . Launcher . | . . . Special Weapon . | . . . Impact Weapon . | . . . Slashing Weapon . | . . . Piercing Weapon . | . . . Special Melee Weapon . | . . . Unidentified Prototypes . | . . . Parts Lost 5 | . . 5 Power 1 | . . 1 Propulsion 2 | . . 2 Utility . | . . . Weapon 2 | . . 2 Highest Loss Streak 5 | . . 5 To Critical Strikes . | . . . Average Slot Usage (%) 80 | . 80 81 Engine 13 | . 13 13 Leg 27 | . 28 26 Processor 10 | . 9 14 Energy Gun 22 | . 25 14 Energy Cannon 5 | . 2 14 Naked Turns . | . . . Heaviest Build 11 | 7 11 8 Greatest Support 20 | 20 20 20 Greatest Overweight (x) 1 | . . 1 Average Overweight (x) . | . . . Largest Inventory Capacity 5 | 5 5 5 Average Capacity 5 | 5 5 5 Most Carried 4 | 2 4 3 Average Carried 1 | . 1 2 Final Capacity 5 | 5 5 5 Final Carried 3 | . 3 2 Class Distribution -------------------- 100% | Mutant Dominant Class ---------------- Mutant | -10/Materials Mutant | -10/Mines Resources | -11 -10 -10 ----------- Run | Scr Mat Min Matter Collected 340 | 209 121 10 Remotely . | . . . Salvage Created 251 | 14 225 12 Parts 20 | 2 18 . Haulers Intercepted . | . . . Recyclers Shooed . | . . . Parts Field Recycled . | . . . Retrieved Matter . | . . . Parts Self-Destructed . | . . . Prevented . | . . . Kills | -11 -10 -10 ------- Run | Scr Mat Min Combat Hostiles Destroyed 10 | . 9 1 Guns 10 | . 9 1 Classes Destroyed 4 | 1 2 1 Tunneler 1 | 1 . . Swarmer 6 | . 6 . Grunt 3 | . 3 . Assembled 1 | . . 1 Best Kill Streak 3 | 1 3 1 Combat Bots Only 3 | . 3 1 Max Kills in Single Turn 2 | 1 2 1 Gunslinging 1 | . 1 . Exploded . | . . . Melee . | . . . Uniques/NPCs Destroyed . | . . . Combat | -11 -10 -10 -------- Run | Scr Mat Min Damage Taken 888 | . 347 541 Core 255 | . 68 187 Absorbed by Shields . | . . . Core Remaining (%) 100 | 100 . . Volleys Fired 35 | 6 23 6 Largest 2 | 2 2 2 Hottest 110 | 80 100 110 Shots Fired 69 | 12 45 12 Gun 62 | 12 44 6 Cannon 7 | . 1 6 Launcher . | . . . Special . | . . . Kinetic . | . . . Thermal 69 | 12 45 12 Explosive . | . . . Electromagnetic . | . . . Robot Hit Streak 5 | 5 4 4 Robot Miss Streak 7 | 2 7 2 Penetration Max . | . . . Secondary Targets 2 | . 2 . Max Gunslinging Chain 1 | . 1 . Shots Hit Robots 39 | 7 25 7 Core Hits 17 | 1 13 3 Critical Kills . | . . . Critical Parts Destroyed . | . . . Critical Strikes 1 | . 1 . Burn 1 | . 1 . Melee Attacks . | . . . Impact . | . . . Slashing . | . . . Piercing . | . . . Sneak Attacks . | . . . Combat Hostiles . | . . . Follow-up Attacks . | . . . Damage Inflicted 486 | 78 331 77 Guns 434 | 78 331 25 Cannons 52 | . . 52 Explosions . | . . . Melee . | . . . Ramming . | . . . Kinetic . | . . . Thermal 486 | 78 331 77 Explosive . | . . . Electromagnetic . | . . . Impact . | . . . Slashing . | . . . Piercing . | . . . Highest Corruption . | . . . Average Corruption . | . . . Corruption Purged . | . . . Corruption Blocked . | . . . Overload Shots . | . . . Overflow Damage . | . . . Projectiles . | . . . Explosions . | . . . Melee . | . . . Knockbacks . | . . . Impact . | . . . Kinetic . | . . . Secondary . | . . . Self-Inflicted Damage . | . . . Shots . | . . . Rammed . | . . . Targets Rammed . | . . . Kicked . | . . . Crushed . | . . . Highest Temperature 258 | 90 258 184 Average Temperature 82 | 43 93 68 Received Heat Transfer 127 | . 87 40 Siege Activations . | . . . Robots Corrupted . | . . . Combat Hostiles . | . . . Parts Fried . | . . . Impact Corruptions . | . . . Robots Melted . | . . . Combat Hostiles . | . . . Parts Melted 3 | . 3 . Heat Transferred 1278 | 175 918 185 Parts Sabotaged . | . . . Parts Stolen . | . . . Parts Stripped . | . . . Power Chain Reactions . | . . . Missiles Intercepted . | . . . Alert | -11 -10 -10 ------- Run | Scr Mat Min Peak Influence 202 | 5 202 27 Initial 27 | . 3 27 Average 59 | 1 79 25 Maximum Alert Level 1 | . 1 . Low Security (%) 99 | 100 99 100 Level 1 . | . . . Level 2 . | . . . Level 3 . | . . . Level 4 . | . . . Level 5 . | . . . High Security . | . . . Max Security . | . . . Squads Dispatched 1 | . 1 . Investigation . | . . . Extermination . | . . . Reinforcement 1 | . 1 . Assault . | . . . Garrison . | . . . Intercept . | . . . Searches Triggered . | . . . Construction Impeded . | . . . Haulers Reinforced . | . . . Active Scanning Responses . | . . . Cargo Convoy Interrupts . | . . . Stealth | -11 -10 -10 --------- Run | Scr Mat Min Distress Signals 1 | . 1 . Communications Jammed . | . . . Distress Signals . | . . . Times Spotted 16 | . 11 5 Peak Tracking Total 4 | . 4 4 Tactical Retreats 2 | . . 2 Traps | -11 -10 -10 ------- Run | Scr Mat Min Traps Triggered . | . . . Indirectly . | . . . Trap Hack Attempts . | . . . Triggered . | . . . Disarmed . | . . . Reprogrammed . | . . . Reused . | . . . Traps Extracted . | . . . Installed . | . . . Triggered . | . . . Machines | -11 -10 -10 ---------- Run | Scr Mat Min Machines Disabled . | . . . Max in Single Turn . | . . . Machines Sabotaged . | . . . Garrisons Compromised . | . . . Overloaded Fab Kills . | . . . Hacking | -11 -10 -10 --------- Run | Scr Mat Min Machines Accessed 3 | . 3 . Terminals 3 | . 3 . Fabricators . | . . . Repair Stations . | . . . Recycling Units . | . . . Scanalyzers . | . . . Garrison Access . | . . . Total Hacks 8 | . 8 . Successful 4 | . 4 . Failed 4 | . 4 . Catastrophic 1 | . 1 . Database Lockouts . | . . . Manual 7 | . 7 . Terminals 8 | . 8 . Fabricators . | . . . Repair Stations . | . . . Recycling Units . | . . . Scanalyzers . | . . . Garrison Access . | . . . Terminal Hacks 2 | . 2 . Locate Traps 2 | . 2 . Fabricator Hacks . | . . . Repair Station Hacks . | . . . Recycling Unit Hacks . | . . . Scanalyzer . | . . . Garrison Access Hacks . | . . . Unauthorized Hacks 2 | . 2 . Terminals 2 | . 2 . Assimilate 2 | . 2 . Fabricators . | . . . Repair Stations . | . . . Recycling Units . | . . . Scanalyzers . | . . . Garrison Access . | . . . Data Cores Recovered . | . . . Used . | . . . Hacking Detections 3 | . 3 . Full Trace Events . | . . . Feedback Events . | . . . Feedback Blocked . | . . . Robot Schematics Acquired . | . . . Robots Built . | . . . Authchips . | . . . Time . | . . . Total Robot Build Rating . | . . . Part Schematics Acquired . | . . . Parts Built . | . . . Authchips . | . . . Time . | . . . Total Part Build Rating . | . . . Parts Repaired . | . . . Time . | . . . Parts Recycled . | . . . Recycled Matter . | . . . Retrieved Matter . | . . . Retrieved Components . | . . . Parts Scanalyzed . | . . . Part Schematics Acquired . | . . . Parts Damaged . | . . . Bothacking | -11 -10 -10 ------------ Run | Scr Mat Min Used RIF Installer . | . . . Robots Hacked . | . . . Non-combat . | . . . Combat . | . . . Robot Hacks Applied . | . . . Relay Couplers Released . | . . . Fabnet Peak Effective % . | . . . Robots Rewired . | . . . Allies Hacked . | . . . Hacks Repelled . | . . . Allies | -11 -10 -10 -------- Run | Scr Mat Min Total Allies . | . . . Largest Group . | . . . Highest-Rated Group . | . . . Highest-Rated Ally . | . . . Total Orders . | . . . Ally Attacks . | . . . Total Damage . | . . . Kills . | . . . Allies Corrupted . | . . . Allies Melted . | . . . Intel | -11 -10 -10 ------- Run | Scr Mat Min Robot Analysis Total . | . . . Derelict Logs Recovered . | . . . Drone Launches . | . . . Drone Recoveries . | . . . Exploration | -11 -10 -10 ------------- Run | Scr Mat Min Turns Passed 654 | 70 446 138 Spaces Moved 419 | 40 299 80 Core 12 | 7 . 5 Treads . | . . . Legs 407 | 33 299 75 Wheels . | . . . Hover . | . . . Flight . | . . . Fastest Speed 50 | 50 120 100 Average Speed 118 | 107 120 118 Slowest Speed 120 | 120 120 120 Overloaded Moves . | . . . Propulsion Burnouts . | . . . Robots Hopped . | . . . Cave-ins Triggered . | . . . Exploration Rate (%) 29 | 5 58 24 Regions Visited 2 Branch Regions 1 Pre-discovered Areas . | . . . Known Exits Taken . | . . . Unknown Exits Taken 2 | 1 1 . Scrap Searched . | . . . Spaces Dug . | . . . Terrain Destroyed . | . . . Melee . | . . . Projectile . | . . . AOE . | . . . Terrain Rammed . | . . . Walls Destroyed . | . . . Machines Disabled . | . . . Actions | -11 -10 -10 --------- Run | Scr Mat Min Total 505 | 55 340 110 Wait 23 | . 1 22 Move 417 | 39 298 80 Hop . | . . . Pick Up 12 | 5 7 . Fast Attach . | . . . Attach 9 | 5 3 1 Detach . | . . . Swap 6 | . 5 1 Drop 3 | . 3 . Fire 35 | 6 23 6 Melee . | . . . Ram . | . . . Kick . | . . . Crush . | . . . Escape Stasis . | . . . Rewire . | . . . Trap . | . . . Miscellaneous . | . . . Route ------- -11/Scrapyard -10/Materials (discovered 3 exits: [*Mat] / [*Min x2]) -10/Mines History --------- Turn | Location | Event 3 | -11/Scrapyard | Discovered new exit (range 16) 71 | -11/Scrapyard | Entered Materials 265 | -10/Materials | Discovered new exit (range 9) 309 | -10/Materials | Build established: Mutant 452 | -10/Materials | Discovered new exit (range 16) 468 | -10/Materials | Discovered new exit (range 15) 517 | -10/Materials | Entered Mines 518 | -10/Mines | Assembled infested the area 523 | -10/Mines | Assisted by a Guerilla fighting off Assembled 651 | -10/Mines | Core integrity fell below 50% 653 | -10/Mines | Core integrity fell below 20% 655 | -10/Mines | Destroyed by D-53 Grenadier with Mini Grenade Launcher Last Messages --------------- as-55562 destroyed. Acquired 9 matter. as-91960 destroyed. HV Slug penetrates Wall. HV Slug penetrates as-10026. as-10026 suffers critical hit (Destroy). 9M-G1O(h) shuts down. 9M-G1O(h) suffers critical hit (Burn). Acquired 1 matter. 9M-G1O(h) reactivates. as-54042 destroyed. K-01 Serf collects debris. The unstable cave ceiling collapses. Lgt. Ion Engine destroyed. Beam Cannon destroyed. Aluminum Leg destroyed. The unstable cave ceiling collapses. K-01 Serf collects debris. U-05 Engineer lays Concrete. Beam Cannon destroyed. Map ----- +----------------------------------------------------+ | ???????????????????????????????????? | | ???????????????????????????????????? | | ???????????????????????????????????? | | ???????????????????????????????????? | | ?????????????????????###???????????? | | ???????????????##??## ##??????????? | | ?????????????? ?# #??????????? | | ??????????????? ## #??????????? | | ???????????????# # #??????????? | | ???????????????# #??????????? | | ??????????????## #??????????? | | ?????????????## ???????????? | | ????????????## ???????????? | | ????????????# """ #???????????? | | ????????????# """ #???????????? | | ????????????# """ d ##??????????? | | ???????????# kdu ##?????????? | | ????????# ## ##????????? | | ????????????????## # ##???????? | | ????????????????# ##??????? | | ????????????????# #??????? | | ????????????????# ##??????? | | ????????????????# ##?????? | | ????????????????# #?????? | | ????????????????## #?????? | | ?????????????????## @ ##?????? | | ??????????????????## #??????? | | ???????????????????# # # ###??????? | | ???????????????????## ### #????????? | | ???????????????###### #????????? | | ???????????????# # #????????? | | ????????????????## ####????????? | | ???????????###### ##??????????? | | ????????# % #??????????? | | ????????########## ##??????????? | | ???????????# #???????????? | | ???????????## # ##???????????? | | ??????????????# # # #????????????? | | ??????????????## ### ##???????????? | | ??????????????####### "#???????????? | | ??????????????# #???????????? | | ??????????##### #### ##???????????? | | ??????????# #??####????????????? | | ??????????# #####??????????????????? | | ???????##?# "#?????????????????????? | | ???????# ## ##?????????????????????? | | ???????##%" #??????????????????????? | | ???????# %%%#??????????????????????? | | ???????# ####??#####???????????????? | | ####### ####### ##??####????????? | +----------------------------------------------------+ Best States ------------- Heat Dissipation 25 Energy Generation 10 Energy Capacity 250 Matter Stores 300 Matter Capacity 300 Sight Range 16 Terrain Scan Density 10 Evasion (%) 55 Targeting Accuracy 5 Item Schematics ----------------- None Robot Schematics ------------------ None Fabricated ------------ Nothing Alien Tech Used ----------------- None Achievements -------------- None Challenges ------------ None Game ------ Seed GravitonAnalysisThrower Manual? 0 Play Time 00:09:41 Cumulative 35.9 hours Start 2022.06.25 @ 11:31:35 End 2022.06.25 @ 11:41:18 Sessions 1 Manual Loads 0 Difficulty Rogue Special Mode None Game No. 61 Rogue 61 Adventurer 0 Explorer 0 Win Type - Total 0 Types 0/0/0/0/0/0/0/0/0 Lore% 21 Gallery% 27 Achievement% 22 Wizard Run 0 Options --------- ASCII 0 Keyboard 0 Movement Mouse Keybinds 0 Fullscreen 2 Font 18/SmallcapsGlow Map View 76x50 Tactical HUD 0 Map Filters NONE Filters NONE Steam 1 RUN: eba05084-ad06-4d79-b6d4-e515dfd81429